bitfinex/quotes_SOLUSD_20241125
["timestamp","ask_amount","ask_price","bid_price","bid_amount"]
[1732496330383,5.51536952,251.1,251.02,13.80666952]
[1732496330914,5.51536952,251.11,251.02,13.80666952]
[1732496331130,16.1663,251.17,251.02,13.80666952]
[1732496331131,5.51536952,251.09,251.02,11.81486952]
[1732496331409,5.51536952,251.09,251.02,6.2995]
[1732496332092,5.51536952,251.09,251.02,13.80666952]
[1732496332302,5.51536952,251.11,251.02,13.80666952]
[1732496334107,5.51536952,251.09,251.02,13.80666952]
[1732496335001,5.51536952,251.11,251.02,13.80666952]
[1732496336503,5.51536952,251.09,251.02,13.80666952]
[1732496337209,5.51536952,251.11,251.02,13.80666952]
[1732496338922,5.51536952,251.09,251.02,8.2913]
[1732496339123,5.51536952,251.11,251.02,13.80666952]
[1732496344799,22.06147808,251.16,251.02,13.80666952]
[1732496344800,5.51536952,251.07,251.02,6.2995]
[1732496348326,22.06147808,251.16,251.0,15.2987]
[1732496348327,5.51536952,251.04,251.0,15.2987]
[1732496348530,5.51536952,251.04,250.96,14.11486952]
[1732496349522,5.51536952,251.06,250.96,14.11486952]
[1732496350119,5.51536952,251.06,250.99,1.9921]
[1732496350305,23.776884,251.15,250.99,1.9921]
[1732496350500,5.51536952,251.07,250.99,1.9921]
[1732496351407,20.0,251.12,251.0,5.51536952]
[1732496351610,5.51536952,251.09,251.0,5.51536952]
[1732496352704,16.1663,251.17,251.02,5.51536952]
[1732496352705,5.51536952,251.11,251.02,5.51536952]
[1732496352924,5.51536952,251.11,251.04,5.51536952]
[1732496353101,15.2987,251.22,251.06,5.51536952]
[1732496353301,15.2987,251.22,251.07,6.1749]
[1732496353302,5.51536952,251.15,251.07,6.1749]
[1732496353717,5.51536952,251.15,251.07,11.69026952]
[1732496354331,5.51536952,251.15,251.07,13.68166952]
[1732496354824,5.51536952,251.15,251.07,11.69026952]
[1732496355012,5.51536952,251.13,251.07,6.1749]
[1732496355217,5.51536952,251.11,251.07,6.1749]
[1732496355527,5.51536952,251.11,251.04,18.2459]
[1732496356301,5.51536952,251.11,251.04,16.2543]
[1732496356519,5.51536952,251.09,251.04,16.2543]
[1732496356721,5.51536952,251.11,251.04,16.2543]
[1732496356901,5.51536952,251.11,251.04,18.246]
[1732496357308,5.51536952,251.11,251.04,16.2543]
[1732496357826,5.51536952,251.11,251.01,6.45]
[1732496358024,5.51536952,251.11,251.02,5.51536952]
[1732496359708,5.51536952,251.11,251.02,7.50716952]
[1732496362244,22.5486,251.23,251.04,7.50706952]
[1732496362245,20.0,251.19,251.04,7.50706952]
[1732496362531,5.51536952,251.13,251.04,7.50706952]
[1732496364014,5.51536952,251.13,251.02,1.9918]
[1732496364216,5.51536952,251.13,251.03,5.51536952]
[1732496365213,5.51536952,251.11,251.02,1.9918]
[1732496365429,5.51536952,251.09,251.02,1.9918]
[1732496366421,5.51536952,251.13,251.04,1.9917]
[1732496368726,5.51536952,251.11,251.03,5.51536952]
[1732496368928,5.51536952,251.11,251.02,1.9917]
[1732496369737,5.51536952,251.09,251.01,6.45]
[1732496370236,22.06147808,251.16,251.01,6.45]
[1732496370237,5.51536952,251.05,251.01,6.45]
[1732496371112,5.51536952,251.05,250.98,21.44339076]
[1732496371113,5.51536952,251.05,250.98,15.2192]
[1732496372116,5.51536952,251.03,250.97,6.22419076]
[1732496372315,5.51536952,251.01,250.95,12.82669076]
[1732496372515,5.51536952,250.98,250.93,6.22419076]
[1732496372818,5.51536952,251.0,250.93,8.21669076]
[1732496374130,5.51536952,251.0,250.93,6.22419076]
[1732496374728,5.51536952,251.0,250.93,8.21669076]
[1732496376025,25.6189,251.14,250.97,23.776884]
[1732496376026,15.6189,251.14,250.97,23.776884]
[1732496376222,5.51536952,251.06,250.97,23.776884]
[1732496377119,5.51536952,251.04,250.97,25.769084]
[1732496378942,5.51536952,250.99,250.96,6.22419076]
[1732496379128,5.51536952,251.01,250.94,8.21659076]
[1732496379327,23.776884,251.13,250.94,6.22419076]
[1732496379328,5.51536952,250.99,250.94,6.22419076]
[1732496379518,5.51536952,250.99,250.93,6.22419076]
[1732496380048,5.51536952,250.99,250.94,6.22419076]
[1732496380426,5.51536952,251.01,250.94,6.22419076]
[1732496381545,5.51536952,251.01,250.93,8.21669076]
[1732496385248,20.0,251.11,250.95,5.51536952]
[1732496385436,5.51536952,251.04,250.95,5.51536952]
[1732496386243,5.51536952,251.04,250.96,1.9923]
[1732496386743,5.51536952,251.06,250.97,5.51536952]
[1732496388145,5.51536952,251.06,250.98,1.9921]
[1732496390065,5.51536952,251.04,250.97,1.9922]
[1732496391047,5.51536952,251.04,250.95,5.51536952]
[1732496391246,5.51536952,251.04,250.96,1.9923]
[1732496392654,5.51536952,251.02,250.94,6.22419076]
[1732496392830,5.51536952,251.02,250.95,1.9924]
[1732496393758,5.51536952,250.98,250.94,6.22419076]
[1732496394137,5.51536952,250.98,250.93,1.9925]
[1732496394437,5.51536952,250.98,250.92,8.21679076]
[1732496394637,5.51536952,250.98,250.92,6.22419076]
[1732496395252,5.51536952,250.98,250.91,6.22419076]
[1732496395552,5.51536952,250.92,250.86,6.22419076]
[1732496395755,5.51536952,250.9,250.85,6.22419076]
[1732496395949,5.51536952,250.9,250.86,6.22419076]
[1732496396153,5.51536952,250.9,250.85,6.22419076]
[1732496396334,5.51536952,250.9,250.84,8.21739076]
[1732496397157,5.51536952,250.9,250.85,6.22419076]
[1732496397336,5.51536952,250.9,250.84,8.21739076]
[1732496397741,5.51536952,250.9,250.84,6.22419076]
[1732496397939,5.51536952,250.9,250.83,6.22419076]
[1732496398153,5.51536952,250.88,250.83,6.22419076]
[1732496398336,5.51536952,250.88,250.82,6.22419076]
[1732496398750,23.776884,250.97,250.8,28.51969076]
[1732496398751,5.51536952,250.86,250.8,28.51969076]
[1732496398933,5.51536952,250.86,250.8,12.73059076]
[1732496399140,5.51536952,250.81,250.79,6.22419076]
[1732496399366,5.51536952,250.81,250.75,6.22419076]
[1732496399851,15.0767,250.89,250.75,13.73346028]
[1732496400061,5.51536952,250.83,250.75,13.73346028]
[1732496400241,5.51536952,250.85,250.75,13.73346028]
[1732496400556,5.51536952,250.83,250.75,13.73346028]
[1732496400760,5.51536952,250.83,250.75,7.50926952]
[1732496400938,5.51536952,250.81,250.74,12.25119076]
[1732496401140,5.51536952,250.81,250.74,6.027]
[1732496401358,5.51536952,250.81,250.73,5.51536952]
[1732496401555,5.51536952,250.79,250.72,6.22419076]
[1732496401746,5.51536952,250.79,250.7,15.2858]
[1732496401953,5.51536952,250.75,250.68,6.6484]
[1732496402655,5.51536952,250.77,250.68,12.16376952]
[1732496402836,20.0,250.86,250.7,5.51536952]
[1732496403156,20.0,250.86,250.74,5.51536952]
[1732496403157,5.51536952,250.82,250.74,5.51536952]
[1732496403359,5.51536952,250.84,250.76,5.51536952]
[1732496403851,15.0767,250.89,250.8,5.51536952]
[1732496404055,5.51536952,250.9,250.82,5.51536952]
[1732496404261,5.51536952,250.9,250.84,5.51536952]
[1732496404461,8.65673978,250.91,250.84,8.65673978]
[1732496405038,8.65673978,250.91,250.8,6.6497]
[1732496405039,8.65673978,250.93,250.86,8.65673978]
[1732496405239,15.7609,250.95,250.8,6.6497]
[1732496405240,8.65673978,250.95,250.87,8.65673978]
[1732496405744,15.3092,251.01,250.87,8.65673978]
[1732496405745,8.65673978,250.93,250.87,8.65673978]
[1732496405956,8.65673978,250.93,250.85,10.64983978]
[1732496406257,8.65673978,250.91,250.83,30.65003978]
[1732496407764,8.65673978,250.89,250.81,8.65673978]
[1732496408061,15.3092,251.01,250.8,6.6497]
[1732496408062,8.65673978,250.91,250.83,8.65673978]
[1732496408666,8.65673978,250.93,250.85,8.65673978]
[1732496409070,8.65673978,250.91,250.83,8.65673978]
[1732496409394,8.65673978,250.89,250.81,8.65673978]
[1732496410337,8.65673978,250.84,250.77,8.65673978]
[1732496411178,8.65673978,250.86,250.77,8.65673978]
[1732496411459,8.65673978,250.88,250.79,8.65673978]
[1732496411643,8.65673978,250.86,250.79,8.65673978]
[1732496411844,8.65673978,250.86,250.77,28.65673978]
[1732496412350,8.65673978,250.84,250.77,20.0]
[1732496412669,8.65673978,250.84,250.75,10.65063978]
[1732496412854,8.65673978,250.84,250.77,8.65673978]
[1732496413041,8.65673978,250.84,250.75,1.9939]
[1732496413042,8.65673978,250.88,250.79,8.65673978]
[1732496413451,8.65673978,250.88,250.79,10.65033978]
[1732496414565,8.65673978,250.92,250.83,8.65673978]
[1732496414863,8.65673978,250.97,250.89,8.65673978]
[1732496415447,8.65673978,250.94,250.87,8.65673978]
[1732496416668,15.3468,250.98,250.85,8.65673978]
[1732496416669,8.65673978,250.92,250.85,8.65673978]
[1732496416844,8.65673978,250.92,250.83,8.65673978]
[1732496417044,8.65673978,250.94,250.85,8.65673978]
[1732496417668,8.65673978,250.94,250.85,10.64983978]
[1732496418460,8.65673978,250.92,250.85,10.64983978]
[1732496418859,8.65673978,250.9,250.81,10.65023978]
[1732496419157,8.65673978,250.86,250.8,1.9935]
[1732496419373,8.65673978,250.86,250.78,1.9937]
[1732496420070,8.65673978,250.86,250.77,8.65673978]
[1732496420249,8.65673978,250.84,250.77,8.65673978]
[1732496420449,8.65673978,250.84,250.72,1.9942]
[1732496420651,16.366,250.86,250.73,8.65673978]
[1732496420652,8.65673978,250.82,250.73,8.65673978]
[1732496420871,8.65673978,250.82,250.74,1.994]
[1732496421045,8.65673978,250.82,250.73,10.65083978]
[1732496421478,8.65673978,250.79,250.71,10.65093978]
[1732496421649,8.65673978,250.79,250.71,8.65673978]
[1732496421849,16.366,250.86,250.69,1.9944]
[1732496421850,8.65673978,250.77,250.69,10.65113978]
[1732496422973,8.65673978,250.8,250.72,8.65673978]
[1732496424274,8.65673978,250.8,250.66,6.1155]
[1732496424275,8.65673978,250.78,250.7,8.65673978]
[1732496425360,8.65673978,250.78,250.7,10.65103978]
[1732496425875,8.65673978,250.8,250.72,8.65673978]
[1732496427457,8.65673978,250.8,250.72,10.65093978]
[1732496429063,8.65673978,250.82,250.74,8.65673978]
[1732496429466,8.65673978,250.86,250.78,8.65673978]
[1732496429665,6.3116,250.91,250.78,8.65673978]
[1732496429873,8.65673978,250.9,250.82,8.65673978]
[1732496430082,8.65673978,250.91,250.84,8.65673978]
[1732496430258,8.65673978,250.93,250.84,8.65673978]
[1732496430459,8.65673978,250.94,250.86,8.65673978]
[1732496430774,8.65673978,250.92,250.86,8.65673978]
[1732496431297,8.65673978,250.91,250.83,8.65673978]
[1732496431653,8.65673978,250.91,250.85,8.65673978]
[1732496431856,15.5215,250.99,250.87,8.65673978]
[1732496432074,8.65673978,250.95,250.87,8.65673978]
[1732496433487,8.65673978,250.93,250.85,8.65673978]
[1732496433659,8.65673978,250.89,250.82,8.65673978]
[1732496434282,8.65673978,250.91,250.82,8.65673978]
[1732496434579,8.65673978,250.94,250.86,8.65673978]
[1732496434780,15.5215,250.99,250.81,1.9934]
[1732496434781,16.3373,251.11,250.89,20.0]
[1732496434981,16.3373,251.11,250.87,22.1266]
[1732496434982,8.65673978,251.04,250.95,8.65673978]
[1732496435176,8.65673978,251.04,250.97,8.65673978]
[1732496435562,8.65673978,251.08,250.99,8.65673978]
[1732496436672,8.65673978,251.02,250.95,8.65673978]
[1732496436898,8.65673978,251.02,250.93,28.65673978]
[1732496437098,8.65673978,251.0,250.93,28.65673978]
[1732496437879,8.65673978,251.02,250.95,8.65673978]
[1732496438085,8.65673978,251.06,250.99,8.65673978]
[1732496439187,8.65673978,251.08,250.99,8.65673978]
[1732496440309,8.65673978,251.1,251.01,8.65673978]
[1732496440979,8.65673978,251.1,251.03,8.65673978]
[1732496442585,8.65673978,251.12,251.03,8.65673978]
[1732496445002,8.65673978,251.14,251.05,8.65673978]
[1732496445206,10.0,251.28,251.01,1.5935]
[1732496445207,8.65673978,251.16,251.07,8.65673978]
[1732496445499,8.65673978,251.16,251.01,5.5774]
[1732496445500,8.65673978,251.1,251.01,8.65673978]
[1732496445891,8.65673978,251.08,251.01,8.65673978]
[1732496446078,8.65673978,251.08,251.0,6.422]
[1732496448810,8.65673978,251.08,251.01,8.65673978]
[1732496448977,8.65673978,251.1,251.01,8.65673978]
[1732496449521,8.65673978,251.08,251.01,8.65673978]
[1732496449808,15.0922,251.23,251.0,6.422]
[1732496449809,20.0,251.2,251.0,8.0155]
[1732496449988,8.65673978,251.15,251.03,20.0]
[1732496450189,8.65673978,251.15,251.07,8.65673978]
[1732496450391,8.65673978,251.17,251.09,8.65673978]
[1732496450808,8.65673978,251.19,251.11,8.65673978]
[1732496451503,8.65673978,251.17,251.07,8.65673978]
[1732496451695,8.65673978,251.13,251.05,8.65673978]
[1732496451896,15.0922,251.23,251.03,8.65673978]
[1732496451897,8.65673978,251.11,251.03,8.65673978]
[1732496452100,8.65673978,251.09,251.01,8.65673978]
[1732496452606,8.65673978,251.05,251.0,6.422]
[1732496452807,8.65673978,251.05,250.96,8.65673978]
[1732496454084,16.493,251.11,250.96,10.25053978]
[1732496454284,16.493,251.11,250.98,8.65673978]
[1732496454285,8.65673978,251.06,250.98,8.65673978]
[1732496454814,8.65673978,251.06,250.96,1.5938]
[1732496454815,8.65673978,251.04,250.96,8.65673978]
[1732496455181,8.65673978,251.02,250.94,8.65673978]
[1732496455590,16.493,251.11,250.92,6.5941]
[1732496455591,8.65673978,251.0,250.92,6.5941]
[1732496455793,8.65673978,250.98,250.9,8.65673978]
[1732496456108,8.65673978,250.92,250.84,8.65673978]
[1732496456491,8.65673978,250.9,250.82,8.65673978]
[1732496457010,8.65673978,250.94,250.86,8.65673978]
[1732496457188,16.1171,251.0,250.8,8.65673978]
[1732496457189,8.65673978,250.9,250.8,8.65673978]
[1732496458508,8.65673978,250.88,250.8,8.65673978]
[1732496459486,8.65673978,250.9,250.82,8.65673978]
[1732496460203,16.1171,251.0,250.88,8.65673978]
[1732496460387,8.65673978,250.96,250.88,8.65673978]
[1732496460708,8.65673978,250.94,250.86,8.65673978]
[1732496460906,16.1171,251.0,250.79,6.1159]
[1732496460907,8.65673978,250.9,250.79,6.1159]
[1732496461106,8.65673978,250.9,250.81,8.65673978]
[1732496461608,8.65673978,250.9,250.83,8.65673978]
[1732496462111,8.65673978,250.92,250.85,8.65673978]
[1732496462288,8.65673978,250.94,250.85,8.65673978]
[1732496462615,8.65673978,250.96,250.87,8.65673978]
[1732496462910,8.65673978,250.92,250.83,8.65673978]
[1732496463288,8.65673978,250.9,250.81,8.65673978]
[1732496463609,16.1171,251.0,250.79,8.65673978]
[1732496463610,8.65673978,250.88,250.79,8.65673978]
[1732496463811,8.65673978,250.86,250.77,8.65673978]
[1732496466815,8.65673978,250.82,250.73,8.65673978]
[1732496467200,8.65673978,250.8,250.73,8.65673978]
[1732496467405,8.65673978,250.8,250.71,8.65673978]
[1732496467919,15.6489,250.88,250.73,8.65673978]
[1732496467920,8.65673978,250.82,250.73,8.65673978]
[1732496468699,8.65673978,250.8,250.71,8.65673978]
[1732496469111,8.65673978,250.8,250.67,7.8024]
[1732496469294,8.65673978,250.8,250.7,8.65673978]
[1732496469494,15.6489,250.88,250.7,8.65673978]
[1732496469495,8.65673978,250.78,250.7,8.65673978]
[1732496472495,8.65673978,250.76,250.68,8.65673978]
[1732496472697,22.7425406,250.9,250.63,20.0]
[1732496472698,8.65673978,250.72,250.63,20.0]
[1732496472914,8.65673978,250.72,250.63,28.65673978]
[1732496473107,8.65673978,250.72,250.65,8.65673978]
[1732496473512,8.65673978,250.7,250.63,8.65673978]
[1732496474437,8.65673978,250.68,250.59,8.65673978]
[1732496475430,8.65673978,250.66,250.59,8.65673978]
[1732496475625,8.65673978,250.65,250.58,8.65673978]
[1732496475920,8.65673978,250.66,250.59,8.65673978]
[1732496476311,8.65673978,250.66,250.57,8.65673978]
[1732496476612,8.65673978,250.64,250.57,8.65673978]
[1732496477618,8.65673978,250.66,250.57,8.65673978]
[1732496478937,8.65673978,250.64,250.57,8.65673978]
[1732496479124,8.65673978,250.62,250.55,8.65673978]
[1732496480212,8.65673978,250.62,250.53,8.65673978]
[1732496480709,8.65673978,250.6,250.53,8.65673978]
[1732496481118,8.65673978,250.62,250.53,8.65673978]
[1732496482133,8.65673978,250.62,250.55,8.65673978]
[1732496482308,24.52943978,250.64,250.55,8.65673978]
[1732496482515,15.8727,250.64,250.59,8.65673978]
[1732496482812,8.65673978,250.67,250.6,8.65673978]
[1732496483728,8.65673978,250.69,250.61,8.65673978]
[1732496483937,15.2036,250.7,250.66,8.65673978]
[1732496484115,8.65673978,250.74,250.66,8.65673978]
[1732496484464,25.14443978,250.76,250.69,8.65673978]
[1732496484629,16.4877,250.76,250.69,8.65673978]
[1732496484834,8.65673978,250.78,250.69,8.65673978]
[1732496485011,8.65673978,250.77,250.69,8.65673978]
[1732496485637,8.65673978,250.76,250.68,8.65673978]
[1732496485808,8.65673978,250.72,250.65,8.65673978]
[1732496487513,8.65673978,250.72,250.63,8.65673978]
[1732496487716,8.65673978,250.7,250.63,8.65673978]
[1732496488424,8.65673978,250.72,250.63,8.65673978]
[1732496488637,8.65673978,250.72,250.65,8.65673978]
[1732496489135,8.65673978,250.72,250.63,8.65673978]
[1732496489519,8.65673978,250.7,250.61,8.65673978]
[1732496490034,8.65673978,250.68,250.61,8.65673978]
[1732496490251,8.65673978,250.68,250.59,8.65673978]
[1732496490613,23.776884,250.67,250.59,8.65673978]
[1732496490819,8.65673978,250.65,250.57,8.65673978]
[1732496491256,32.43362378,250.67,250.59,8.65673978]
[1732496491744,8.65673978,250.69,250.59,8.65673978]
[1732496492044,8.65673978,250.69,250.53,1.5966]
[1732496492045,8.65673978,250.69,250.61,8.65673978]
[1732496492619,8.65673978,250.69,250.59,8.65673978]
[1732496493725,8.65673978,250.69,250.61,8.65673978]
[1732496494644,8.65673978,250.67,250.59,8.65673978]
[1732496496440,8.65673978,250.67,250.55,20.0]
[1732496496624,8.65673978,250.65,250.57,8.65673978]
[1732496496824,8.65673978,250.67,250.59,8.65673978]
[1732496497828,8.65673978,250.69,250.59,8.65673978]
[1732496498246,8.65673978,250.69,250.61,8.65673978]
[1732496498426,15.3272,250.7,250.63,8.65673978]
[1732496498624,8.65673978,250.73,250.65,8.65673978]
[1732496499141,15.6079,250.76,250.61,8.65673978]
[1732496499142,8.65673978,250.69,250.61,8.65673978]
[1732496499747,8.65673978,250.69,250.59,1.5962]
[1732496499748,8.65673978,250.71,250.63,8.65673978]
[1732496500522,23.776884,250.7,250.63,8.65673978]
[1732496500925,8.65673978,250.73,250.65,8.65673978]
[1732496502136,23.776884,250.72,250.65,8.65673978]
[1732496502935,8.65673978,250.75,250.67,8.65673978]
[1732496504150,23.776884,250.74,250.67,8.65673978]
[1732496507253,8.65673978,250.75,250.67,10.25243978]
[1732496507563,15.6364,250.82,250.71,8.65673978]
[1732496507564,8.65673978,250.79,250.71,8.65673978]
[1732496508150,8.65673978,250.81,250.73,8.65673978]
[1732496508531,8.65673978,250.83,250.75,8.65673978]
[1732496510160,8.65673978,250.85,250.77,8.65673978]
[1732496510370,8.65673978,250.91,250.83,8.65673978]
[1732496511043,8.65673978,250.87,250.79,8.65673978]
[1732496512062,8.65673978,250.89,250.81,8.65673978]
[1732496512435,23.776884,250.88,250.81,8.65673978]
[1732496515464,8.65673978,250.85,250.77,8.65673978]
[1732496515661,25.3075,250.94,250.74,15.7705]
[1732496515662,8.65673978,250.81,250.74,15.7705]
[1732496515857,23.776884,250.8,250.75,8.65673978]
[1732496516044,23.776884,250.82,250.75,8.65673978]
[1732496516359,23.776884,250.86,250.79,8.65673978]
[1732496517255,8.65673978,250.83,250.75,8.65673978]
[1732496517440,23.776884,250.82,250.75,8.65673978]
[1732496519259,8.65673978,250.81,250.74,15.7705]
[1732496519434,23.776884,250.8,250.74,15.7705]
[1732496520756,23.776884,250.8,250.71,8.65673978]
[1732496521362,8.65673978,250.79,250.71,8.65673978]
[1732496521564,23.776884,250.78,250.71,8.65673978]
[1732496521745,23.776884,250.78,250.73,8.65673978]
[1732496521941,8.65673978,250.81,250.73,8.65673978]
[1732496522148,23.776884,250.8,250.73,8.65673978]
[1732496522345,23.776884,250.82,250.75,8.65673978]
[1732496522761,8.65673978,250.81,250.73,8.65673978]
[1732496522965,23.776884,250.8,250.73,8.65673978]
[1732496523761,23.776884,250.82,250.73,8.65673978]
[1732496524348,23.776884,250.82,250.67,21.3225]
[1732496524349,23.776884,250.82,250.75,8.65673978]
[1732496524660,23.776884,250.84,250.77,8.65673978]
[1732496524841,8.65673978,250.85,250.77,8.65673978]
[1732496525038,8.65673978,250.87,250.79,8.65673978]
[1732496525260,8.65673978,250.89,250.81,8.65673978]
[1732496525668,8.65673978,250.91,250.83,8.65673978]
[1732496526868,23.776884,250.9,250.83,8.65673978]
[1732496527173,23.776884,250.88,250.81,8.65673978]
[1732496529576,23.776884,250.86,250.79,14.97943978]
[1732496530074,23.776884,250.84,250.79,6.3227]
[1732496530280,23.776884,250.82,250.75,8.65673978]
[1732496531171,23.776884,250.82,250.77,8.65673978]
[1732496531350,23.776884,250.86,250.79,8.65673978]
[1732496531864,8.65673978,250.89,250.79,8.65673978]
[1732496533156,8.65673978,250.89,250.81,10.25153978]
[1732496533565,23.776884,250.88,250.81,10.25153978]
[1732496533763,23.776884,250.88,250.81,8.65673978]
[1732496534273,23.776884,250.84,250.77,8.65673978]
[1732496534984,26.1318,250.96,250.75,1.5952]
[1732496534985,23.776884,250.86,250.79,8.65673978]
[1732496535886,6.1318,250.96,250.83,8.65673978]
[1732496535887,8.65673978,250.91,250.83,8.65673978]
[1732496536481,8.65673978,250.93,250.83,8.65673978]
[1732496537257,8.65673978,250.89,250.81,10.25143978]
[1732496537480,23.776884,250.88,250.81,8.65673978]
[1732496538079,23.776884,250.88,250.74,3.9881]
[1732496538080,23.776884,250.88,250.79,10.25163978]
[1732496538280,23.776884,250.86,250.77,20.0]
[1732496538486,23.776884,250.84,250.77,28.65673978]
[1732496538991,23.776884,250.86,250.79,8.65673978]
[1732496539485,23.776884,250.86,250.77,8.65673978]
[1732496539666,8.65673978,250.83,250.73,14.66023978]
[1732496539865,23.776884,250.82,250.73,14.66023978]
[1732496540273,8.65673978,250.81,250.73,14.66023978]
[1732496540470,23.776884,250.8,250.73,16.25553978]
[1732496540778,23.776884,250.8,250.73,14.66023978]
[1732496541686,8.65673978,250.79,250.71,10.25213978]
[1732496541976,23.776884,250.78,250.69,8.65673978]
[1732496542186,23.776884,250.76,250.69,8.65673978]
[1732496544083,23.776884,250.74,250.67,15.09963978]
[1732496544468,23.776884,250.74,250.62,3.99]
[1732496544469,8.65673978,250.73,250.65,8.65673978]
[1732496544780,23.776884,250.7,250.63,8.65673978]
[1732496546065,23.776884,250.7,250.63,10.25263978]
[1732496546569,23.776884,250.7,250.63,8.65673978]
[1732496548770,23.776884,250.7,250.63,10.25263978]
[1732496549284,23.776884,250.7,250.65,8.65673978]
[1732496549584,23.776884,250.7,250.67,8.65673978]
[1732496549985,8.65673978,250.73,250.65,10.25253978]
[1732496550286,8.65673978,250.75,250.69,8.65673978]
[1732496550499,8.65673978,250.79,250.71,8.65673978]
[1732496551480,8.65673978,250.77,250.69,8.65673978]
[1732496551778,8.65673978,250.75,250.66,8.65673978]
[1732496552003,23.776884,250.74,250.66,8.65673978]
[1732496552667,23.776884,250.74,250.68,8.65673978]
[1732496553071,23.776884,250.76,250.68,8.65673978]
[1732496554397,23.776884,250.74,250.68,8.65673978]
[1732496554768,23.776884,250.74,250.66,10.25243978]
[1732496555285,23.776884,250.74,250.7,8.65673978]
[1732496555485,16.6347,250.83,250.66,1.5957]
[1732496555486,8.65673978,250.82,250.73,8.65673978]
[1732496556166,16.6347,250.83,250.75,8.65673978]
[1732496556969,8.65673978,250.82,250.73,8.65673978]
[1732496557402,23.776884,250.81,250.73,8.65673978]
[1732496557568,23.776884,250.81,250.75,8.65673978]
[1732496558187,23.776884,250.81,250.72,1.5953]
[1732496558381,23.776884,250.81,250.73,8.65673978]
[1732496558571,23.776884,250.77,250.69,8.65673978]
[1732496559182,23.776884,250.79,250.73,8.65673978]
[1732496559371,23.776884,250.81,250.73,8.65673978]
[1732496559771,23.776884,250.81,250.75,8.65673978]
[1732496561107,23.776884,250.79,250.71,28.65673978]
[1732496562297,23.776884,250.79,250.71,8.65673978]
[1732496563283,23.776884,250.77,250.69,8.65673978]
[1732496564089,8.65673978,250.76,250.69,8.65673978]
[1732496564286,8.65673978,250.74,250.67,8.65673978]
[1732496564597,23.776884,250.73,250.65,8.65673978]
[1732496565184,23.776884,250.73,250.64,7.9615]
[1732496565185,23.776884,250.75,250.69,8.65673978]
[1732496565490,8.65673978,250.78,250.69,8.65673978]
[1732496565491,23.776884,250.77,250.69,8.65673978]
[1732496566179,8.65673978,250.76,250.67,8.65673978]
[1732496566510,23.776884,250.73,250.67,8.65673978]
[1732496568585,23.776884,250.73,250.65,8.65673978]
[1732496570280,23.776884,250.71,250.63,8.65673978]
[1732496572816,23.776884,250.69,250.63,8.65673978]
[1732496573707,23.776884,250.71,250.63,10.25263978]
[1732496573915,23.776884,250.71,250.65,8.65673978]
[1732496576494,23.776884,250.71,250.65,5.54858196]
[1732496577708,23.776884,250.71,250.67,5.54858196]
[1732496580793,23.776884,250.71,250.65,1.5958]
[1732496580993,23.776884,250.71,250.66,5.54858196]
[1732496581395,15.7293,250.78,250.68,5.54858196]
[1732496581697,15.7293,250.78,250.7,5.54858196]
[1732496582914,23.776884,250.77,250.7,5.54858196]
[1732496583320,29.32546596,250.77,250.64,21.5959]
[1732496583506,23.776884,250.74,250.67,5.54858196]
[1732496584325,23.776884,250.76,250.69,5.54858196]
[1732496587924,15.7293,250.78,250.69,5.54858196]
[1732496588106,5.54858196,250.79,250.71,5.54858196]
[1732496588512,5.54858196,250.81,250.71,5.54858196]
[1732496589225,23.776884,250.8,250.71,5.54858196]
[1732496589552,23.776884,250.78,250.71,5.54858196]
[1732496590400,23.776884,250.78,250.73,5.54858196]
[1732496590708,15.2454,250.84,250.75,5.54858196]
[1732496591025,20.79398196,250.84,250.75,5.54858196]
[1732496591196,5.54858196,250.82,250.75,5.54858196]
[1732496591396,5.54858196,250.8,250.7,11.77277272]
[1732496591706,15.2454,250.84,250.68,11.55128196]
[1732496591707,5.54858196,250.76,250.68,11.55128196]
[1732496591902,15.2454,250.84,250.66,6.22419076]
[1732496591903,23.776884,250.73,250.66,5.54858196]
[1732496592303,5.54858196,250.72,250.64,5.54858196]
[1732496592617,5.54858196,250.7,250.62,6.2672]
[1732496592813,23.776884,250.67,250.6,11.77277272]
[1732496593216,23.776884,250.67,250.6,5.54858196]
[1732496595147,23.776884,250.68,250.6,5.54858196]
[1732496595746,5.54858196,250.67,250.6,5.54858196]
[1732496595947,15.4487,250.73,250.55,12.85919076]
[1732496595948,23.776884,250.64,250.55,12.85919076]
[1732496596240,23.776884,250.64,250.56,5.54858196]
[1732496596736,15.4487,250.73,250.56,5.54858196]
[1732496596737,23.776884,250.62,250.56,5.54858196]
[1732496597128,23.776884,250.63,250.56,5.54858196]
[1732496598447,23.776884,250.63,250.56,8.67573378]
[1732496599440,23.776884,250.61,250.54,8.67573378]
[1732496600039,23.776884,250.59,250.52,8.67573378]
[1732496600746,23.776884,250.59,250.5,1.5967]